fUSD/lending_fUSD_20260414
["ID","MTS","AMOUNT","RATE_DAILY","PERIOD"]
[420480785,1776142559707,-150.0,8.653e-05,2]
[420480786,1776142559753,-500.0,8.653e-05,2]
[420480787,1776142559792,-150.0,8.653e-05,2]
[420480788,1776142559826,-150.0,8.653e-05,2]
[420480789,1776142559866,-213.5793185,8.653e-05,2]
[420480790,1776142559907,-150.0,8.653e-05,2]
[420480791,1776142559957,-474.80274828,8.653e-05,2]
[420480792,1776142559998,-137.7708472,8.653e-05,2]
[420480793,1776142562705,-300.0,8.652e-05,2]
[420480794,1776142562753,-12.2291528,8.653e-05,2]
[420480795,1776142562797,-150.0,8.653e-05,2]
[420480796,1776142562849,-206.4153402,8.653e-05,2]
[420480797,1776142562893,-496.0,8.653e-05,2]
[420480798,1776142562950,-496.0,8.653e-05,2]
[420480799,1776142562991,-496.0,8.653e-05,2]
[420480800,1776142563027,-190.721014,8.653e-05,2]
[420480801,1776142565988,-305.278986,8.653e-05,2]
[420480802,1776142566038,-496.0,8.653e-05,2]
[420480803,1776142566087,-496.0,8.653e-05,2]
[420480804,1776142566123,-496.0,8.653e-05,2]
[420480805,1776142566162,-496.0,8.653e-05,2]
[420480806,1776142568827,-496.0,8.653e-05,2]
[420480807,1776142568881,-496.0,8.653e-05,2]
[420480808,1776142568954,-496.0,8.653e-05,2]
[420480809,1776142569027,-496.0,8.653e-05,2]
[420480810,1776142569066,-496.0,8.653e-05,2]
[420480811,1776142572295,-496.0,8.653e-05,2]
[420480812,1776142572352,-496.0,8.653e-05,2]
[420480813,1776142572390,-496.0,8.653e-05,2]
[420480814,1776142572430,-496.0,8.653e-05,2]
[420480815,1776142572467,-496.0,8.653e-05,2]
[420480816,1776142574870,-496.0,8.653e-05,2]
[420480817,1776142574904,-496.0,8.653e-05,2]
[420480818,1776142574939,-496.0,8.653e-05,2]
[420480819,1776142574973,-496.0,8.653e-05,2]
[420480820,1776142575011,-496.0,8.653e-05,2]
[420480821,1776142578471,-497.0,8.653e-05,2]
[420480822,1776142578501,-981.0,8.653e-05,3]
[420480823,1776142578540,-250.0,8.735e-05,2]
[420480824,1776142578581,-250.0,8.787e-05,2]
[420480825,1776142580976,286.84,8.653e-05,2]
[420480826,1776142625974,150.0,8.653e-05,2]
[420480827,1776142626073,270.75280691,8.653e-05,2]
[420480828,1776142626347,150.0,8.653e-05,2]
[420480829,1776142626440,150.0,8.653e-05,2]
[420480830,1776142626583,36.41719309,8.653e-05,2]
[420480831,1776142626609,113.58280691,8.653e-05,2]
[420480832,1776142626654,150.0,8.653e-05,2]
[420480833,1776142626697,932.0,8.653e-05,3]
[420480834,1776142626815,150.0,8.653e-05,2]
[420480835,1776142626925,250.0,8.653e-05,2]
[420480836,1776142627449,250.0,8.735e-05,2]
[420480837,1776142627771,578.20924308,8.803e-05,2]
[420480838,1776142630446,500.0,8.803e-05,2]
[420480844,1776142639372,157.55,8.404e-05,2]
[420480861,1776142687266,886.0,8.653e-05,3]
[420480862,1776142714993,1032.66795001,8e-05,2]
[420480863,1776142715028,5000.01,8e-05,2]
[420480864,1776142715062,17719.90444468,8e-05,2]
[420480865,1776142729061,-1000.0,8.816e-05,2]
[420480866,1776142732865,-200.0,8.816e-05,2]
[420480867,1776142732898,-150.0,8.816e-05,2]
[420480868,1776142732926,-150.0,8.816e-05,2]
[420480869,1776142732961,-300.0,8.816e-05,2]
[420480870,1776142733428,-200.0,8.817e-05,2]
[420480871,1776142733508,-1000.0,8.817e-05,2]
[420480872,1776142733659,-1000.0,8.817e-05,2]
[420480873,1776142734030,-1000.0,8.817e-05,2]
[420480874,1776142734362,-1000.0,8.817e-05,2]
[420480875,1776142734657,-1000.0,8.817e-05,2]
[420480876,1776142734941,500.0,8.174e-05,2]
[420480877,1776142735065,-1000.0,8.817e-05,2]
[420480878,1776142735449,-1000.0,8.817e-05,2]
[420480879,1776142736895,-1000.0,8.817e-05,2]
[420480880,1776142736945,-1000.0,8.817e-05,2]
[420480881,1776142737025,-1000.0,8.817e-05,2]
[420480882,1776142737111,-1000.0,8.817e-05,2]
[420480883,1776142737369,-1000.0,8.817e-05,2]
[420480884,1776142737696,-1000.0,8.817e-05,2]
[420480885,1776142738190,-1000.0,8.817e-05,2]
[420480886,1776142738633,-1000.0,8.817e-05,2]
[420480887,1776142739157,-1000.0,8.817e-05,2]
[420480888,1776142739597,-1000.0,8.817e-05,2]
[420480889,1776142739887,-1000.0,8.817e-05,2]
[420480890,1776142740196,-1000.0,8.817e-05,2]
[420480891,1776142740571,-1000.0,8.817e-05,2]
[420480892,1776142741020,-1000.0,8.817e-05,2]
[420480893,1776142741167,-1000.0,8.817e-05,2]
[420480894,1776142741524,-1000.0,8.817e-05,2]
[420480895,1776142742003,-1000.0,8.817e-05,2]
[420480896,1776142742455,-1000.0,8.817e-05,2]
[420480897,1776142743013,-1000.0,8.817e-05,2]
[420480898,1776142743220,-1000.0,8.817e-05,2]
[420480899,1776142744099,-1000.0,8.817e-05,2]
[420480900,1776142744267,-1000.0,8.817e-05,2]
[420480901,1776142744387,-1000.0,8.817e-05,2]
[420480902,1776142744579,-1000.0,8.817e-05,2]
[420480903,1776142745161,-1000.0,8.817e-05,2]
[420480904,1776142745401,-1000.0,8.817e-05,2]
[420480905,1776142745832,-1000.0,8.817e-05,2]
[420480906,1776142746101,-1000.0,8.817e-05,2]
[420480907,1776142746463,-1000.0,8.817e-05,2]
[420480908,1776142746725,-1000.0,8.817e-05,2]
[420480909,1776142747959,-1000.0,8.817e-05,2]
[420480910,1776142748080,-1000.0,8.817e-05,2]
[420480911,1776142748150,-1000.0,8.817e-05,2]
[420480912,1776142748233,-1000.0,8.817e-05,2]
[420480913,1776142748498,-1000.0,8.817e-05,2]
[420480914,1776142748842,-1000.0,8.817e-05,2]
[420480915,1776142749151,-1000.0,8.817e-05,2]
[420480916,1776142749474,-1000.0,8.817e-05,2]
[420480917,1776142749962,-1000.0,8.817e-05,2]
[420480918,1776142750333,-1000.0,8.817e-05,2]
[420480919,1776142751064,-1000.0,8.817e-05,2]
[420480920,1776142751125,-1000.0,8.817e-05,2]
[420480921,1776142751274,-1000.0,8.817e-05,2]
[420480922,1776142751712,-1000.0,8.817e-05,2]
[420480923,1776142752139,-1000.0,8.817e-05,2]
[420480924,1776142752481,-1000.0,8.817e-05,2]
[420480925,1776142753098,-1000.0,8.817e-05,2]
[420480926,1776142753171,-1000.0,8.817e-05,2]
[420480927,1776142753746,-1000.0,8.817e-05,2]
[420480928,1776142754150,-1000.0,8.817e-05,2]
[420480929,1776142754262,-1000.0,8.817e-05,2]
[420480930,1776142754659,-1000.0,8.817e-05,2]
[420480931,1776142754935,-1000.0,8.817e-05,2]
[420480932,1776142755283,-1000.0,8.817e-05,2]
[420480933,1776142755645,-1000.0,8.817e-05,2]
[420480934,1776142755961,-1000.0,8.817e-05,2]
[420480935,1776142756299,-1000.0,8.817e-05,2]
[420480936,1776142756775,-1000.0,8.817e-05,2]
[420480937,1776142757243,-1000.0,8.817e-05,2]
[420480938,1776142757751,-1000.0,8.817e-05,2]
[420480939,1776142758937,-1000.0,8.817e-05,2]
[420480940,1776142758995,-1000.0,8.817e-05,2]
[420480941,1776142759855,-1000.0,8.817e-05,2]
[420480942,1776142759927,-1000.0,8.817e-05,2]
[420480943,1776142759995,-1000.0,8.817e-05,2]
[420480944,1776142760708,-1000.0,8.817e-05,2]
[420480945,1776142760841,-1000.0,8.817e-05,2]
[420480946,1776142760980,-1000.0,8.817e-05,2]
[420480947,1776142761078,-1000.0,8.817e-05,2]
[420480948,1776142761237,-1000.0,8.817e-05,2]
[420480949,1776142761606,-1000.0,8.817e-05,2]
[420480950,1776142762041,-1000.0,8.817e-05,2]
[420480951,1776142762333,-1000.0,8.817e-05,2]
[420480952,1776142762793,-1000.0,8.817e-05,2]
[420480953,1776142763260,-1000.0,8.817e-05,2]
[420480954,1776142763635,-1000.0,8.817e-05,2]
[420480955,1776142763947,-1000.0,8.817e-05,2]
[420480956,1776142764398,-1000.0,8.817e-05,2]
[420480957,1776142764896,-1000.0,8.817e-05,2]
[420480958,1776142765227,-1000.0,8.817e-05,2]
[420480959,1776142765586,-1000.0,8.817e-05,2]
[420480960,1776142766083,-1000.0,8.817e-05,2]
[420480961,1776142766374,-1000.0,8.817e-05,2]
[420480962,1776142772296,-608.6191095,8.817e-05,2]
[420480963,1776142772325,-391.3808905,8.817e-05,3]
[420480964,1776142772613,-450.6191095,8.817e-05,3]
[420480965,1776142772641,-156.0,8.817e-05,3]
[420480966,1776142772667,-200.0,8.822e-05,2]
[420480967,1776142772699,-193.3808905,8.822e-05,2]
[420480968,1776142772995,-95.22745096,8.822e-05,2]
[420480969,1776142773053,-721.12765535,8.822e-05,2]
[420480970,1776142773078,-183.64489369,8.822e-05,2]
[420480971,1776142773263,-16.35510631,8.822e-05,2]
[420480972,1776142773303,-151.0,8.822e-05,2]
[420480973,1776142773335,-500.0,8.822e-05,2]
[420480974,1776142773361,-332.64489369,8.822e-05,2]
[420480975,1776142773698,-167.35510631,8.822e-05,2]
[420480976,1776142773730,-500.0,8.822e-05,2]
[420480977,1776142773770,-332.64489369,8.822e-05,2]
[420480978,1776142774063,-167.35510631,8.822e-05,2]
[420480979,1776142774123,-500.0,8.822e-05,2]
[420480980,1776142774167,-209.40437684,8.822e-05,2]
[420480981,1776142774208,-123.24051685,8.822e-05,2]
[420480982,1776142774585,-376.75948315,8.822e-05,2]
[420480983,1776142774625,-500.0,8.822e-05,2]
[420480984,1776142774662,-123.24051685,8.822e-05,2]
[420480985,1776142776302,-376.75948315,8.822e-05,2]
[420480986,1776142776346,-500.0,8.822e-05,2]
[420480987,1776142776375,-123.24051685,8.822e-05,2]
[420480988,1776142776585,-376.75948315,8.822e-05,2]
[420480989,1776142776614,-500.0,8.822e-05,2]
[420480990,1776142776638,-123.24051685,8.822e-05,2]
[420480991,1776142777048,-51.37867456,8.822e-05,2]
[420480992,1776142777094,-151.0,8.825e-05,2]
[420480993,1776142777151,-151.0,8.825e-05,2]
[420480994,1776142777187,-151.0,8.825e-05,2]
[420480995,1776142777230,-151.0,8.825e-05,2]
[420480996,1776142777303,-151.0,8.825e-05,2]
[420480997,1776142777336,-193.62132544,8.825e-05,2]
[420480998,1776142777395,-90.55857355,8.825e-05,2]
[420480999,1776142777426,-500.0,8.826e-05,2]
[420481000,1776142777464,-409.44142645,8.826e-05,2]
[420481001,1776142777605,-90.55857355,8.826e-05,2]
[420481002,1776142777656,-235.35768831,8.826e-05,2]
[420481003,1776142777696,-500.0,8.826e-05,2]
[420481004,1776142777743,-174.08373814,8.826e-05,2]
[420481005,1776142777962,-325.91626186,8.826e-05,2]
[420481006,1776142778000,-500.0,8.826e-05,2]
[420481007,1776142778034,-174.08373814,8.826e-05,2]
[420481008,1776142778285,-325.91626186,8.826e-05,2]
[420481009,1776142778330,-500.0,8.826e-05,2]
[420481010,1776142778372,-174.08373814,8.826e-05,2]
[420481011,1776142778690,-325.91626186,8.826e-05,2]
[420481012,1776142778730,-500.0,8.826e-05,2]
[420481013,1776142778772,-174.08373814,8.826e-05,2]
[420481014,1776142779006,-325.91626186,8.826e-05,2]
[420481015,1776142779064,-500.0,8.826e-05,2]
[420481016,1776142779136,-174.08373814,8.826e-05,2]
[420481017,1776142779353,-325.91626186,8.826e-05,2]
[420481018,1776142779403,-500.0,8.826e-05,2]
[420481019,1776142779443,-174.08373814,8.826e-05,2]
[420481020,1776142779676,-325.91626186,8.826e-05,2]
[420481021,1776142779731,-500.0,8.826e-05,2]
[420481022,1776142779791,-174.08373814,8.826e-05,2]
[420481023,1776142779977,-325.91626186,8.826e-05,2]
[420481024,1776142780010,-500.0,8.826e-05,2]
[420481025,1776142780046,-174.08373814,8.826e-05,2]
[420481026,1776142781883,-325.91626186,8.826e-05,2]
[420481027,1776142781914,-500.0,8.826e-05,2]
[420481028,1776142781944,-174.08373814,8.826e-05,2]
[420481029,1776142782027,-325.91626186,8.826e-05,2]
[420481030,1776142782059,-350.0,8.826e-05,2]
[420481031,1776142782095,-324.08373814,8.826e-05,2]
[420481032,1776142782164,-175.91626186,8.826e-05,2]
[420481033,1776142782215,-500.0,8.826e-05,2]
[420481034,1776142782255,-324.08373814,8.826e-05,2]
[420481035,1776142782361,-175.91626186,8.826e-05,2]
[420481036,1776142782409,-500.0,8.826e-05,2]
[420481037,1776142782464,-324.08373814,8.826e-05,2]
[420481038,1776142782556,-175.91626186,8.826e-05,2]
[420481039,1776142782587,-500.0,8.826e-05,2]
[420481040,1776142782616,-324.08373814,8.826e-05,2]
[420481041,1776142782926,-175.91626186,8.826e-05,2]
[420481042,1776142782959,-500.0,8.826e-05,2]
[420481043,1776142782997,-324.08373814,8.826e-05,2]
[420481044,1776142783310,-175.91626186,8.826e-05,2]
[420481045,1776142783350,-500.0,8.826e-05,2]
[420481046,1776142783382,-324.08373814,8.826e-05,2]
[420481047,1776142783631,-175.91626186,8.826e-05,2]
[420481048,1776142783673,-500.0,8.826e-05,2]
[420481049,1776142783710,-324.08373814,8.826e-05,2]
[420481050,1776142790401,-175.91626186,8.826e-05,2]
[420481051,1776142790445,-500.0,8.826e-05,2]
[420481052,1776142790501,-324.08373814,8.826e-05,2]
[420481053,1776142791111,-175.91626186,8.826e-05,2]
[420481054,1776142791143,-500.0,8.826e-05,2]
[420481055,1776142791174,-324.08373814,8.826e-05,2]
[420481056,1776142791537,-175.91626186,8.826e-05,2]
[420481057,1776142791572,-500.0,8.826e-05,2]
[420481058,1776142791603,-324.08373814,8.826e-05,2]
[420481059,1776142791791,-175.91626186,8.826e-05,2]
[420481060,1776142791837,-500.0,8.826e-05,2]
[420481061,1776142791868,-324.08373814,8.826e-05,2]
[420481062,1776142793281,-175.91626186,8.826e-05,2]
[420481063,1776142793315,-296.66265453,8.826e-05,2]
[420481064,1776142793360,-500.0,8.826e-05,2]
[420481065,1776142793405,-27.42108361,8.826e-05,2]
[420481066,1776142793693,-472.57891639,8.826e-05,2]
[420481067,1776142793727,-500.0,8.826e-05,2]
[420481068,1776142793775,-27.42108361,8.826e-05,2]
[420481069,1776142793821,-472.57891639,8.826e-05,2]
[420481070,1776142793862,-500.0,8.826e-05,2]
[420481071,1776142793899,-27.42108361,8.826e-05,2]
[420481072,1776142794004,-472.57891639,8.826e-05,2]
[420481073,1776142794045,-500.0,8.826e-05,2]
[420481074,1776142794096,-27.42108361,8.826e-05,2]
[420481075,1776142794200,-472.57891639,8.826e-05,2]
[420481076,1776142794253,-500.0,8.826e-05,2]
[420481077,1776142794293,-27.42108361,8.826e-05,2]
[420481078,1776142794402,-472.57891639,8.826e-05,2]
[420481079,1776142794447,-500.0,8.826e-05,2]
[420481080,1776142794485,-27.42108361,8.826e-05,2]
[420481081,1776142794569,-472.57891639,8.826e-05,2]
[420481082,1776142794614,-500.0,8.826e-05,2]
[420481083,1776142794648,-27.42108361,8.826e-05,2]
[420481084,1776142794889,-472.57891639,8.826e-05,2]
[420481085,1776142794932,-500.0,8.826e-05,2]
[420481086,1776142794994,-27.42108361,8.826e-05,2]
[420481087,1776142795513,-472.57891639,8.826e-05,2]
[420481088,1776142795558,-500.0,8.826e-05,2]
[420481089,1776142795590,-27.42108361,8.826e-05,2]
[420481090,1776142795711,-472.57891639,8.826e-05,2]
[420481091,1776142795743,-500.0,8.826e-05,2]
[420481092,1776142795776,-27.42108361,8.826e-05,2]
[420481093,1776142796073,-472.57891639,8.826e-05,2]
[420481094,1776142796139,-500.0,8.826e-05,2]
[420481095,1776142796185,-27.42108361,8.826e-05,2]
[420481096,1776142796395,-472.57891639,8.826e-05,2]
[420481097,1776142796465,-500.0,8.826e-05,2]
[420481098,1776142796519,-27.42108361,8.826e-05,2]
[420481099,1776142796723,-472.57891639,8.826e-05,2]
[420481100,1776142796764,-500.0,8.826e-05,2]
[420481101,1776142796817,-27.42108361,8.826e-05,2]
[420481102,1776142797070,-472.57891639,8.826e-05,2]
[420481103,1776142797134,-500.0,8.826e-05,2]
[420481104,1776142797203,-27.42108361,8.826e-05,2]
[420481105,1776142797420,-472.57891639,8.826e-05,2]
[420481106,1776142797458,-500.0,8.826e-05,2]
[420481107,1776142797497,-27.42108361,8.826e-05,2]
[420481108,1776142797766,-472.57891639,8.826e-05,2]
[420481109,1776142797805,-500.0,8.826e-05,2]
[420481110,1776142797843,-27.42108361,8.826e-05,2]
[420481111,1776142798114,-238.19784938,8.826e-05,2]
[420481112,1776142798146,-500.0,8.826e-05,2]
[420481113,1776142798177,-261.80215062,8.826e-05,2]
[420481114,1776142798510,-238.19784938,8.826e-05,2]
[420481115,1776142798548,-500.0,8.826e-05,2]
[420481116,1776142798589,-261.80215062,8.826e-05,2]
[420481117,1776142799017,-238.19784938,8.826e-05,2]
[420481118,1776142799068,-500.0,8.826e-05,2]
[420481119,1776142799126,-261.80215062,8.826e-05,2]
[420481120,1776142799738,-230.38514715,8.826e-05,2]
[420481121,1776142799779,-500.0,8.826e-05,2]
[420481122,1776142799813,-269.61485285,8.826e-05,2]
[420481123,1776142799873,-230.38514715,8.826e-05,2]
[420481124,1776142799929,-500.0,8.826e-05,2]
[420481125,1776142799970,-269.61485285,8.826e-05,2]
[420481126,1776142800327,-230.38514715,8.826e-05,2]
[420481127,1776142800374,-500.0,8.826e-05,2]
[420481128,1776142800415,-269.61485285,8.826e-05,2]
[420481129,1776142800834,-230.38514715,8.826e-05,2]
[420481130,1776142800885,-500.0,8.826e-05,2]
[420481131,1776142800939,-269.61485285,8.826e-05,2]
[420481132,1776142801197,-230.38514715,8.826e-05,2]
[420481133,1776142801243,-499.99999999,8.826e-05,2]
[420481134,1776142801282,-269.61485286,8.826e-05,2]
[420481135,1776142801554,-300.0,8.825e-05,2]
[420481136,1776142801587,-700.0,8.825e-05,2]
[420481137,1776142802064,-500.0,8.825e-05,2]
[420481138,1776142802116,-150.0,8.825e-05,2]
[420481139,1776142802185,-230.38514714,8.826e-05,2]
[420481140,1776142802235,-119.61485286,8.827e-05,2]
[420481141,1776142802404,-380.38514714,8.827e-05,2]
[420481142,1776142802458,-242.33381387,8.827e-05,2]
[420481143,1776142802498,-377.28103899,8.827e-05,2]
[420481144,1776142802678,-500.0,8.817e-05,2]
[420481145,1776142802707,-122.71896101,8.827e-05,2]
[420481146,1776142802735,-377.28103899,8.827e-05,2]
[420481147,1776142803085,-500.0,8.817e-05,2]
[420481148,1776142803121,-7.68549656,8.827e-05,2]
[420481149,1776142803149,-492.31450344,8.827e-05,2]
[420481150,1776142839513,500.0,8.384e-05,2]
[420481151,1776142845422,-500.0,8.817e-05,2]
[420481152,1776142845451,-468.55102849,8.817e-05,2]
[420481153,1776142845482,-31.44897151,8.826e-05,3]
[420481154,1776142847382,-767.55102849,8.826e-05,3]
[420481155,1776142847442,-156.0,8.826e-05,3]
[420481156,1776142847494,-7.68549656,8.827e-05,2]
[420481157,1776142847535,-68.76347495,8.827e-05,2]
[420481158,1776142847684,-100.87019475,8.827e-05,2]
[420481159,1776142847721,-272.8296894,8.827e-05,2]
[420481160,1776142847755,-626.30011585,8.828e-05,2]
[420481161,1776142850079,-1000.0,8.828e-05,2]
[420481162,1776142850366,-1000.0,8.828e-05,2]
[420481163,1776142850493,-1000.0,8.828e-05,2]
[420481164,1776142850605,-1000.0,8.828e-05,2]
[420481165,1776142850714,-1000.0,8.828e-05,2]
[420481166,1776142852238,-1000.0,8.828e-05,2]
[420481167,1776142852619,-1000.0,8.828e-05,2]
[420481168,1776142852926,-1000.0,8.828e-05,2]
[420481170,1776142853803,-1000.0,8.828e-05,2]
[420481171,1776142854201,-500.0,8.827e-05,2]
[420481172,1776142854240,-500.0,8.827e-05,2]
[420481173,1776142854493,-401.66746306,8.827e-05,2]
[420481174,1776142854531,-598.33253694,8.828e-05,2]
[420481175,1776142854890,-1000.0,8.828e-05,2]
[420481176,1776142855227,-1000.0,8.828e-05,2]
[420481177,1776142855594,-1000.0,8.828e-05,2]
[420481178,1776142855985,-1000.0,8.828e-05,2]
[420481179,1776142857407,-1000.0,8.828e-05,2]
[420481180,1776142888177,3679.549,8.651e-05,2]
[420481181,1776142888230,248.476,8.651e-05,2]
[420481182,1776142891034,1071.985,8.728e-05,2]
[420481183,1776142891254,-632.6869,8.728e-05,2]
[420481184,1776142929330,200.0,8.764e-05,2]
[420481185,1776142933844,-721.12765535,8.822e-05,2]
[420481186,1776142933877,-1428.38747117,8.822e-05,2]
[420481187,1776142933905,-200.0,8.822e-05,2]
[420481188,1776142933936,-759.0,8.826e-05,3]
[420481189,1776142933966,-300.0,8.826e-05,2]
[420481190,1776142934005,-500.0,8.827e-05,2]
[420481191,1776142934054,-500.0,8.827e-05,2]
[420481192,1776142934110,-532.64065778,8.827e-05,2]
[420481193,1776142934186,-500.0,8.827e-05,2]
[420481194,1776142934223,-500.0,8.827e-05,2]
[420481195,1776142934253,-500.0,8.827e-05,2]
[420481196,1776142934287,-500.0,8.827e-05,2]
[420481197,1776142934318,-500.0,8.827e-05,2]
[420481198,1776142934350,-500.0,8.827e-05,2]
[420481199,1776142934379,-500.0,8.827e-05,2]
[420481200,1776142934407,-500.0,8.827e-05,2]
[420481201,1776142934433,-578.20924308,8.828e-05,2]
[420481202,1776142934461,-480.63497262,8.828e-05,2]
[420481203,1776142935821,-19.36502738,8.828e-05,2]
[420481204,1776142935863,-9980.63497262,8.828e-05,2]
[420481205,1776142937091,-200.0,8.822e-05,2]
[420481206,1776142937130,-9800.0,8.828e-05,2]
[420481207,1776142938410,-10000.0,8.828e-05,2]
[420481208,1776142939543,-10000.0,8.828e-05,2]
[420481209,1776142940602,-10000.0,8.828e-05,2]
[420481210,1776142948158,-500.0,8.822e-05,2]
[420481211,1776142948190,-500.0,8.822e-05,2]
[420481212,1776142948223,-500.0,8.822e-05,2]
[420481213,1776142948261,-500.0,8.822e-05,2]
[420481214,1776142948311,-500.0,8.822e-05,2]
[420481215,1776142948357,-151.0,8.822e-05,2]
[420481216,1776142948400,-500.0,8.822e-05,2]
[420481217,1776142948427,-209.40437684,8.822e-05,2]
[420481218,1776142948464,-500.0,8.822e-05,2]
[420481219,1776142948496,-500.0,8.822e-05,2]
[420481220,1776142948528,-500.0,8.822e-05,2]
[420481221,1776142948558,-722.0,8.826e-05,3]
[420481222,1776142948597,-4417.59562316,8.828e-05,2]
[420481223,1776142949189,2500.0,8.728e-05,2]
[420481224,1776142985399,936.0,8.728e-05,3]
[420481227,1776142992110,164.0,8.728e-05,3]
[420481236,1776143046406,890.0,8.728e-05,3]
[420481237,1776143052524,164.0,8.728e-05,3]
[420481238,1776143060534,156.0,8.728e-05,3]
[420481239,1776143062831,169.18,6.606e-05,2]
[420481241,1776143105710,845.0,6.606e-05,3]
[420481242,1776143105800,845.0,7.416e-05,3]
[420481243,1776143106025,845.0,8.226e-05,3]
[420481244,1776143107015,155.0,6.606e-05,3]
[420481245,1776143112681,2500.0,8.728e-05,2]
[420481246,1776143112817,164.0,6.606e-05,3]
[420481247,1776143145072,1500.0,8.222e-05,2]
[420481249,1776143170028,-500.0,8.822e-05,2]
[420481250,1776143170076,-500.0,8.822e-05,2]
[420481251,1776143170119,-174.61919141,8.822e-05,2]
[420481252,1776143170156,-250.0,8.825e-05,2]
[420481253,1776143170185,-1200.0,8.826e-05,2]
[420481254,1776143170218,-300.0,8.826e-05,2]
[420481255,1776143170250,-150.0,8.826e-05,2]
[420481256,1776143170296,-188.17593857,8.827e-05,2]
[420481257,1776143170360,-522.04276069,8.827e-05,2]
[420481258,1776143170433,-500.0,8.827e-05,2]
[420481259,1776143170469,-500.0,8.827e-05,2]
[420481260,1776143170519,-500.0,8.827e-05,2]
[420481261,1776143170563,-293.36752262,8.827e-05,2]
[420481262,1776143170625,-500.0,8.827e-05,2]
[420481263,1776143170670,-500.0,8.827e-05,2]
[420481264,1776143170713,-500.0,8.827e-05,2]
[420481265,1776143170745,-500.0,8.827e-05,2]
[420481266,1776143170783,-500.0,8.827e-05,2]
[420481267,1776143170816,-500.0,8.827e-05,2]
[420481268,1776143170845,-500.0,8.827e-05,2]
[420481269,1776143170867,-183.1614046,8.827e-05,2]
[420481270,1776143170892,-183.16140459,8.828e-05,2]
[420481271,1776143170919,-555.47177752,8.828e-05,2]
[420481272,1776143171143,-10000.0,8.828e-05,2]
[420481273,1776143172293,718.0,6.606e-05,3]
[420481274,1776143172616,718.0,7.416e-05,3]
[420481275,1776143172734,-10000.0,8.828e-05,2]
[420481276,1776143173241,718.0,8.226e-05,3]
[420481277,1776143173823,-10000.0,8.828e-05,2]
[420481278,1776143174795,-10000.0,8.828e-05,2]
[420481279,1776143175756,-10000.0,8.828e-05,2]
[420481280,1776143179978,164.0,6.606e-05,3]
[420481281,1776143199626,187.83076797,8.812e-05,2]
[420481282,1776143203908,-6356.794668,8.828e-05,2]
[420481283,1776143206088,150.0,0.000165,30]
[420481285,1776143233654,9812.17923203,8.728e-05,2]
[420481286,1776143233710,10000.01,8.728e-05,2]
[420481287,1776143233805,2682.01,8.728e-05,2]
[420481288,1776143233838,5000.01,8.728e-05,2]
[420481289,1776143258371,14908.71,8.217e-05,2]
[420481290,1776143258566,-4506.02,8.728e-05,2]
[420481291,1776143261289,-5000.01,8.728e-05,2]
[420481292,1776143264389,-5000.01,8.728e-05,2]
[420481293,1776143267849,-5000.01,8.728e-05,2]
[420481294,1776143270682,-5000.01,8.728e-05,2]
[420481295,1776143276714,-5000.01,8.728e-05,2]
[420481296,1776143319959,2000.0,8.239e-05,2]
[420481298,1776143352992,611.0,8.239e-05,3]
[420481299,1776143358253,-300.0,8.726e-05,2]
[420481300,1776143358307,-300.0,8.726e-05,2]
[420481301,1776143358358,-150.0,8.726e-05,2]
[420481302,1776143358402,-500.0,8.727e-05,2]
[420481303,1776143358447,-500.0,8.727e-05,2]
[420481304,1776143358487,-500.0,8.727e-05,2]
[420481305,1776143358533,-0.01,8.727e-05,2]
[420481306,1776143358788,-499.99,8.727e-05,2]
[420481307,1776143358961,-500.0,8.727e-05,2]
[420481308,1776143359010,-500.0,8.727e-05,2]
[420481309,1776143359066,-500.0,8.727e-05,2]
[420481310,1776143359127,-500.0,8.727e-05,2]
[420481311,1776143359168,-500.0,8.727e-05,2]
[420481312,1776143359348,-500.0,8.727e-05,2]
[420481313,1776143359382,-500.0,8.727e-05,2]
[420481314,1776143359415,-500.0,8.727e-05,2]
[420481315,1776143359447,-500.0,8.727e-05,2]
[420481316,1776143359479,-500.0,8.727e-05,2]
[420481317,1776143361087,-500.0,8.727e-05,2]
[420481318,1776143361134,-500.0,8.727e-05,2]
[420481319,1776143361176,-500.0,8.727e-05,2]
[420481320,1776143361222,-500.0,8.727e-05,2]